[Event "*** Titled Tuesday Blitz"]
[Site "Chess.com"]
[Date "2018.07.03"]
[Round "10"]
[White "Martins-BR"]
[Black "AsaHoffmann"]
[Result "1-0"]
[WhiteElo "2284"]
[BlackElo "2001"]
[TimeControl "180+2"]
[EndTime "15:09:41 PDT"]
[Termination "Martins-BR won by resignation"]

1. e4 {[%clk 0:03:01.9]} 1... d6 {[%clk 0:02:55.3]} 2. d4 {[%clk 0:03:01.4]}
2... Nf6 {[%clk 0:02:55.4]} 3. Nc3 {[%clk 0:03:02]} 3... c6 {[%clk 0:02:55.5]}
4. f4 {[%clk 0:03:01.5]} 4... Qa5 {[%clk 0:02:55.4]} 5. e5 {[%clk 0:03:01.3]}
5... Nd5 {[%clk 0:02:54.5]} 6. Qf3 {[%clk 0:02:58.7]} 6... Bf5 {[%clk
0:02:53.3]} 7. Bd2 {[%clk 0:02:55.3]} 7... Nxc3 {[%clk 0:02:51.7]} 8. Bxc3
{[%clk 0:02:53.7]} 8... Qd5 {[%clk 0:02:52.3]} 9. Qxd5 {[%clk 0:02:51.7]} 9...
cxd5 {[%clk 0:02:52.5]} 10. O-O-O {[%clk 0:02:50.4]} 10... dxe5 {[%clk 0:02:51]}
11. dxe5 {[%clk 0:02:47]} 11... e6 {[%clk 0:02:51.8]} 12. Nf3 {[%clk 0:02:47.8]}
12... Nc6 {[%clk 0:02:51.7]} 13. Nd4 {[%clk 0:02:47.9]} 13... Nxd4 {[%clk
0:02:48.2]} 14. Bxd4 {[%clk 0:02:48.2]} 14... a6 {[%clk 0:02:49.2]} 15. Bd3
{[%clk 0:02:43]} 15... Bg6 {[%clk 0:02:44.1]} 16. g4 {[%clk 0:02:40]} 16... Bxd3
{[%clk 0:02:38.5]} 17. Rxd3 {[%clk 0:02:38.6]} 17... h5 {[%clk 0:02:38.9]} 18.
g5 {[%clk 0:02:34]} 18... Rc8 {[%clk 0:02:35.8]} 19. h4 {[%clk 0:02:32.1]} 19...
Bc5 {[%clk 0:02:33.4]} 20. c3 {[%clk 0:02:16.8]} 20... Bxd4 {[%clk 0:02:27.9]}
21. Rxd4 {[%clk 0:02:17.1]} 21... g6 {[%clk 0:02:28.7]} 22. Kd2 {[%clk
0:02:16.2]} 22... Ke7 {[%clk 0:02:23.3]} 23. Ke3 {[%clk 0:02:14.9]} 23... Rc5
{[%clk 0:02:22.6]} 24. Rhd1 {[%clk 0:02:13.3]} 24... Rhc8 {[%clk 0:02:22.2]} 25.
R1d3 {[%clk 0:02:11.4]} 25... b5 {[%clk 0:02:22]} 26. a3 {[%clk 0:02:07.1]}
26... a5 {[%clk 0:02:21]} 27. Rd2 {[%clk 0:02:00.3]} 27... Rc4 {[%clk
0:02:21.2]} 28. R2d3 {[%clk 0:01:54.1]} 28... Rxd4 {[%clk 0:02:20.4]} 29. Rxd4
{[%clk 0:01:54]} 29... Rc4 {[%clk 0:02:20.3]} 30. Rxc4 {[%clk 0:01:52.2]} 30...
bxc4 {[%clk 0:02:20.4]} 31. Kd4 {[%clk 0:01:47.7]} 31... Kd7 {[%clk 0:02:20.3]}
32. Kc5 {[%clk 0:01:48.6]} 32... Kc7 {[%clk 0:02:21.1]} 33. Kb5 {[%clk
0:01:48.7]} 33... a4 {[%clk 0:02:19.7]} 34. Kxa4 {[%clk 0:01:46.6]} 34... Kc6
{[%clk 0:02:20.1]} 35. Kb4 {[%clk 0:01:46.3]} 35... d4 {[%clk 0:02:17.6]} 36.
cxd4 {[%clk 0:01:44.9]} 36... Kd5 {[%clk 0:02:18.2]} 1-0

[Event "*** Titled Tuesday Blitz"]
[Site "Chess.com"]
[Date "2018.07.03"]
[Round "10"]
[White "Dr-Bassem"]
[Black "W_Amadeus"]
[Result "1-0"]
[WhiteElo "2720"]
[BlackElo "2590"]
[TimeControl "180+2"]
[EndTime "15:09:42 PDT"]
[Termination "Dr-Bassem won by resignation"]

1. e4 {[%clk 0:03:01.9]} 1... e5 {[%clk 0:03:00.6]} 2. Nf3 {[%clk 0:03:01.9]}
2... Nc6 {[%clk 0:03:02]} 3. Bc4 {[%clk 0:03:03.5]} 3... Nf6 {[%clk 0:03:02.7]}
4. d3 {[%clk 0:03:03.7]} 4... Be7 {[%clk 0:03:03.3]} 5. O-O {[%clk 0:03:04.5]}
5... O-O {[%clk 0:03:04.3]} 6. Re1 {[%clk 0:03:06.1]} 6... d6 {[%clk 0:03:05.1]}
7. a4 {[%clk 0:03:07.7]} 7... Kh8 {[%clk 0:03:05]} 8. a5 {[%clk 0:03:06.1]} 8...
a6 {[%clk 0:03:02.9]} 9. Nc3 {[%clk 0:03:06.6]} 9... Ng8 {[%clk 0:02:49.6]} 10.
h3 {[%clk 0:03:07.8]} 10... f5 {[%clk 0:02:48.8]} 11. Nd5 {[%clk 0:03:08.9]}
11... fxe4 {[%clk 0:02:18.1]} 12. dxe4 {[%clk 0:03:07.4]} 12... Nf6 {[%clk
0:02:19]} 13. Ng5 {[%clk 0:03:05.1]} 13... Nxd5 {[%clk 0:02:12]} 14. Nxh7 {[%clk
0:03:05.8]} 14... Rf4 {[%clk 0:01:01.6]} 15. g3 {[%clk 0:02:33]} 15... Nf6
{[%clk 0:00:32.5]} 16. Nxf6 {[%clk 0:02:22]} 16... Rxf6 {[%clk 0:00:23.4]} 17.
Qh5+ {[%clk 0:02:22.1]} 17... Rh6 {[%clk 0:00:24.4]} 18. Bxh6 {[%clk 0:02:23.6]}
1-0

[Event "*** Titled Tuesday Blitz"]
[Site "Chess.com"]
[Date "2018.07.03"]
[Round "10"]
[White "Zq1"]
[Black "pultineviciuspaulius"]
[Result "0-1"]
[WhiteElo "2530"]
[BlackElo "2636"]
[TimeControl "180+2"]
[EndTime "15:10:03 PDT"]
[Termination "pultineviciuspaulius won by resignation"]

1. d4 {[%clk 0:03:01.9]} 1... Nf6 {[%clk 0:03:00.7]} 2. c4 {[%clk 0:03:02.2]}
2... g6 {[%clk 0:03:01.5]} 3. Nc3 {[%clk 0:03:03.2]} 3... d5 {[%clk 0:03:02.5]}
4. Nf3 {[%clk 0:03:02.8]} 4... Bg7 {[%clk 0:03:03.4]} 5. cxd5 {[%clk 0:03:00.6]}
5... Nxd5 {[%clk 0:03:04.4]} 6. Bd2 {[%clk 0:03:01.8]} 6... O-O {[%clk
0:03:04.2]} 7. Rc1 {[%clk 0:03:02]} 7... c5 {[%clk 0:03:04.6]} 8. dxc5 {[%clk
0:03:00.9]} 8... Na6 {[%clk 0:03:01.9]} 9. e3 {[%clk 0:02:54.9]} 9... Nxc5
{[%clk 0:02:55.6]} 10. Nxd5 {[%clk 0:02:50.5]} 10... Qxd5 {[%clk 0:02:56]} 11.
Bc3 {[%clk 0:02:44.3]} 11... Bxc3+ {[%clk 0:02:36.4]} 12. Rxc3 {[%clk
0:02:44.1]} 12... Qxd1+ {[%clk 0:02:37.8]} 13. Kxd1 {[%clk 0:02:44.6]} 13... Ne4
{[%clk 0:02:39]} 14. Rc2 {[%clk 0:02:41.8]} 14... Be6 {[%clk 0:02:39.5]} 15. Nd4
{[%clk 0:02:07.9]} 15... Bxa2 {[%clk 0:02:26.6]} 16. b3 {[%clk 0:02:07.5]} 16...
e5 {[%clk 0:02:27.9]} 17. Ke1 {[%clk 0:01:36.2]} 17... Rac8 {[%clk 0:02:05.6]}
18. Bc4 {[%clk 0:01:23.6]} 18... exd4 {[%clk 0:01:55.6]} 19. Rxa2 {[%clk
0:01:23.5]} 19... b5 {[%clk 0:01:57.1]} 20. f3 {[%clk 0:00:55.2]} 20... bxc4
{[%clk 0:01:55.1]} 21. fxe4 {[%clk 0:00:55.6]} 21... cxb3 {[%clk 0:01:56.7]} 22.
Ra1 {[%clk 0:00:54.4]} 22... b2 {[%clk 0:01:57.4]} 23. Rb1 {[%clk 0:00:54.8]}
23... Rc1+ {[%clk 0:01:58.6]} 24. Kd2 {[%clk 0:00:55.3]} 24... dxe3+ {[%clk
0:01:59.4]} 25. Kxe3 {[%clk 0:00:52.9]} 25... Rxh1 {[%clk 0:02:00.3]} 26. Rxh1
{[%clk 0:00:52]} 26... a5 {[%clk 0:02:01.3]} 0-1

[Event "*** Titled Tuesday Blitz"]
[Site "Chess.com"]
[Date "2018.07.03"]
[Round "10"]
[White "plouarzel"]
[Black "Zaven_ChessMood"]
[Result "1-0"]
[WhiteElo "2503"]
[BlackElo "2831"]
[TimeControl "180+2"]
[EndTime "15:10:06 PDT"]
[Termination "plouarzel won by checkmate"]

1. e4 {[%clk 0:03:01.2]} 1... c5 {[%clk 0:03:00.3]} 2. Nf3 {[%clk 0:03:01.2]}
2... d6 {[%clk 0:03:01.6]} 3. Bb5+ {[%clk 0:03:01.5]} 3... Nc6 {[%clk
0:03:01.7]} 4. Bxc6+ {[%clk 0:03:02.3]} 4... bxc6 {[%clk 0:03:00.7]} 5. O-O
{[%clk 0:03:04.2]} 5... Nf6 {[%clk 0:03:00.9]} 6. Re1 {[%clk 0:03:04.1]} 6... e5
{[%clk 0:03:01.8]} 7. c3 {[%clk 0:03:05]} 7... c4 {[%clk 0:03:01.1]} 8. b3
{[%clk 0:02:55]} 8... cxb3 {[%clk 0:02:52.1]} 9. axb3 {[%clk 0:02:56.9]} 9...
Be7 {[%clk 0:02:53.8]} 10. d4 {[%clk 0:02:57]} 10... exd4 {[%clk 0:02:54.9]} 11.
cxd4 {[%clk 0:02:58.9]} 11... O-O {[%clk 0:02:55.6]} 12. h3 {[%clk 0:02:47.8]}
12... d5 {[%clk 0:02:53.5]} 13. e5 {[%clk 0:02:46.5]} 13... Ne4 {[%clk
0:02:54.6]} 14. Nbd2 {[%clk 0:02:47.8]} 14... Bb4 {[%clk 0:02:54.1]} 15. Re3
{[%clk 0:02:40.3]} 15... Bf5 {[%clk 0:02:53.7]} 16. Ba3 {[%clk 0:02:29.7]} 16...
a5 {[%clk 0:02:53.3]} 17. Bxb4 {[%clk 0:02:19.2]} 17... axb4 {[%clk 0:02:52.9]}
18. Rxa8 {[%clk 0:02:21.1]} 18... Qxa8 {[%clk 0:02:52.8]} 19. Nh4 {[%clk
0:02:17.8]} 19... Nc3 {[%clk 0:02:50]} 20. Qe1 {[%clk 0:02:02.2]} 20... Bg6
{[%clk 0:02:48]} 21. e6 {[%clk 0:01:52.7]} 21... fxe6 {[%clk 0:02:46.7]} 22.
Nxg6 {[%clk 0:01:53.2]} 22... hxg6 {[%clk 0:02:46.9]} 23. Rxe6 {[%clk
0:01:54.5]} 23... Qa7 {[%clk 0:02:48.5]} 24. Nf3 {[%clk 0:01:53.1]} 24... Rxf3
{[%clk 0:02:44.9]} 25. gxf3 {[%clk 0:01:50.9]} 25... Qxd4 {[%clk 0:02:46.4]} 26.
Rxg6 {[%clk 0:01:47.7]} 26... Qd3 {[%clk 0:02:41.2]} 27. Qe6+ {[%clk 0:01:35]}
27... Kh7 {[%clk 0:02:41.2]} 28. Rg4 {[%clk 0:01:36]} 28... Ne2+ {[%clk
0:02:25.1]} 29. Kh2 {[%clk 0:01:28.4]} 29... g6 {[%clk 0:02:16.4]} 30. Rh4+
{[%clk 0:01:16]} 30... Kg7 {[%clk 0:02:16.5]} 31. Qe7+ {[%clk 0:01:17.3]} 31...
Kg8 {[%clk 0:02:17.8]} 32. Rh7 {[%clk 0:01:15.3]} 32... Qf5 {[%clk 0:02:10.8]}
33. Qg7# {[%clk 0:01:15.2]} 1-0

[Event "*** Titled Tuesday Blitz"]
[Site "Chess.com"]
[Date "2018.07.03"]
[Round "10"]
[White "GM_dmitrij"]
[Black "MITerryble"]
[Result "0-1"]
[WhiteElo "2792"]
[BlackElo "2720"]
[TimeControl "180+2"]
[EndTime "15:10:17 PDT"]
[Termination "MITerryble won by resignation"]

1. e4 {[%clk 0:03:01.9]} 1... e6 {[%clk 0:02:58.8]} 2. d4 {[%clk 0:03:02.5]}
2... d5 {[%clk 0:03:00.1]} 3. Nd2 {[%clk 0:03:02.1]} 3... Be7 {[%clk 0:03:00.9]}
4. Ngf3 {[%clk 0:03:01.3]} 4... Nf6 {[%clk 0:02:58.8]} 5. e5 {[%clk 0:02:56]}
5... Nfd7 {[%clk 0:02:59.9]} 6. Bd3 {[%clk 0:02:57.4]} 6... c5 {[%clk
0:03:01.8]} 7. c3 {[%clk 0:02:58.6]} 7... Nc6 {[%clk 0:03:03.7]} 8. O-O {[%clk
0:02:58.8]} 8... g5 {[%clk 0:03:05.2]} 9. dxc5 {[%clk 0:02:59.1]} 9... Ndxe5
{[%clk 0:03:04.9]} 10. Nxe5 {[%clk 0:02:54.6]} 10... Nxe5 {[%clk 0:03:06.8]} 11.
Bb5+ {[%clk 0:02:52.9]} 11... Bd7 {[%clk 0:03:07.3]} 12. Bxd7+ {[%clk
0:02:49.9]} 12... Qxd7 {[%clk 0:03:09.2]} 13. Nb3 {[%clk 0:02:51]} 13... Ng6
{[%clk 0:02:56.6]} 14. Qe2 {[%clk 0:02:31]} 14... e5 {[%clk 0:02:51.7]} 15. Be3
{[%clk 0:02:21.9]} 15... f6 {[%clk 0:02:52.4]} 16. Rad1 {[%clk 0:02:22.5]} 16...
Rd8 {[%clk 0:02:53.1]} 17. Rd2 {[%clk 0:02:16.1]} 17... a6 {[%clk 0:02:41.8]}
18. Rfd1 {[%clk 0:02:15.9]} 18... Qe6 {[%clk 0:02:43.3]} 19. Na5 {[%clk
0:02:13.6]} 19... Rd7 {[%clk 0:02:44.5]} 20. c6 {[%clk 0:02:03.8]} 20... bxc6
{[%clk 0:02:46.4]} 21. Qxa6 {[%clk 0:02:05.2]} 21... Rd6 {[%clk 0:02:38.8]} 22.
Nb7 {[%clk 0:02:05.9]} 22... Rd7 {[%clk 0:02:39]} 23. Na5 {[%clk 0:01:56.8]}
23... Rd6 {[%clk 0:02:39.3]} 24. Bc5 {[%clk 0:01:52.5]} 24... Rd7 {[%clk
0:02:39.6]} 25. Be3 {[%clk 0:01:42.5]} 25... Rd6 {[%clk 0:02:37.9]} 26. c4
{[%clk 0:01:25.4]} 26... d4 {[%clk 0:02:37]} 27. c5 {[%clk 0:01:26.7]} 27... Rd5
{[%clk 0:02:23.2]} 28. Nxc6 {[%clk 0:01:22.4]} 28... Rxc5 {[%clk 0:02:24]} 29.
Nb4 {[%clk 0:00:35.3]} 29... Qxa6 {[%clk 0:02:22.1]} 30. Nxa6 {[%clk 0:00:37.2]}
30... dxe3 {[%clk 0:02:18.9]} 0-1

[Event "*** Titled Tuesday Blitz"]
[Site "Chess.com"]
[Date "2018.07.03"]
[Round "10"]
[White "ahmadzada13"]
[Black "krzysztofszczurek"]
[Result "1-0"]
[WhiteElo "2497"]
[BlackElo "2381"]
[TimeControl "180+2"]
[EndTime "15:10:18 PDT"]
[Termination "ahmadzada13 won by resignation"]

1. e4 {[%clk 0:03:01.9]} 1... c5 {[%clk 0:03:00.3]} 2. Nf3 {[%clk 0:03:02.5]}
2... d6 {[%clk 0:03:00.5]} 3. Bb5+ {[%clk 0:03:01.8]} 3... Bd7 {[%clk
0:03:00.7]} 4. Bxd7+ {[%clk 0:03:02.7]} 4... Nxd7 {[%clk 0:03:01.9]} 5. c3
{[%clk 0:03:03.7]} 5... Ngf6 {[%clk 0:03:03.3]} 6. Qe2 {[%clk 0:03:04.5]} 6...
g6 {[%clk 0:03:04.3]} 7. O-O {[%clk 0:03:05.4]} 7... Bg7 {[%clk 0:03:05.2]} 8.
d4 {[%clk 0:03:06.7]} 8... O-O {[%clk 0:03:06.1]} 9. e5 {[%clk 0:03:06.7]} 9...
Ne8 {[%clk 0:02:58.5]} 10. e6 {[%clk 0:03:07.6]} 10... Ndf6 {[%clk 0:02:51.2]}
11. exf7+ {[%clk 0:03:05.5]} 11... Kxf7 {[%clk 0:02:51.6]} 12. Ng5+ {[%clk
0:03:02.4]} 12... Kg8 {[%clk 0:02:52.7]} 13. Qe6+ {[%clk 0:03:01.8]} 13... Kh8
{[%clk 0:02:53.1]} 14. Nf7+ {[%clk 0:03:03.2]} 14... Rxf7 {[%clk 0:02:54.4]} 15.
Qxf7 {[%clk 0:03:04.4]} 15... Nc7 {[%clk 0:02:52]} 16. Qb3 {[%clk 0:02:59.4]}
16... b6 {[%clk 0:02:50]} 17. Bg5 {[%clk 0:02:57.7]} 17... Qd7 {[%clk
0:02:48.3]} 18. Nd2 {[%clk 0:02:56.3]} 18... cxd4 {[%clk 0:02:48.4]} 19. cxd4
{[%clk 0:02:56.9]} 19... Qg4 {[%clk 0:02:48.2]} 20. Bxf6 {[%clk 0:02:53.8]}
20... Bxf6 {[%clk 0:02:48.7]} 21. Nf3 {[%clk 0:02:54.6]} 21... Rf8 {[%clk
0:02:49.4]} 22. h3 {[%clk 0:02:53.1]} 22... Qh5 {[%clk 0:02:47.9]} 23. Rac1
{[%clk 0:02:51.4]} 23... Ne8 {[%clk 0:02:48.8]} 24. Rc8 {[%clk 0:02:50.3]} 24...
Kg7 {[%clk 0:02:40.6]} 25. Qe6 {[%clk 0:02:37.9]} 25... g5 {[%clk 0:02:35.9]}
26. Rfc1 {[%clk 0:02:31.2]} 26... Qg6 {[%clk 0:02:35.6]} 27. Rd8 {[%clk
0:02:21]} 27... Nc7 {[%clk 0:02:27.6]} 28. Rxc7 {[%clk 0:02:19.6]} 28... Rxd8
{[%clk 0:02:26.7]} 29. Rxe7+ {[%clk 0:02:15.9]} 29... Kh6 {[%clk 0:02:17.2]} 30.
Rf7 {[%clk 0:01:52.4]} 30... Bg7 {[%clk 0:02:08.3]} 31. Qg4 {[%clk 0:01:30.2]}
31... Re8 {[%clk 0:01:57]} 32. h4 {[%clk 0:01:25.8]} 1-0

[Event "*** Titled Tuesday Blitz"]
[Site "Chess.com"]
[Date "2018.07.03"]
[Round "10"]
[White "Arman_Hakemi"]
[Black "51616516516"]
[Result "0-1"]
[WhiteElo "2274"]
[BlackElo "2216"]
[TimeControl "180+2"]
[EndTime "15:11:16 PDT"]
[Termination "51616516516 won by checkmate"]

1. Nf3 {[%clk 0:03:01.9]} 1... Nf6 {[%clk 0:02:59.4]} 2. g3 {[%clk 0:03:02.6]}
2... g6 {[%clk 0:03:00.6]} 3. Bg2 {[%clk 0:03:03.4]} 3... Bg7 {[%clk 0:03:02]}
4. O-O {[%clk 0:03:04.8]} 4... O-O {[%clk 0:03:03.5]} 5. d3 {[%clk 0:03:05.6]}
5... d6 {[%clk 0:02:57.5]} 6. c4 {[%clk 0:03:06.1]} 6... e5 {[%clk 0:02:58]} 7.
Nc3 {[%clk 0:03:06.9]} 7... Nc6 {[%clk 0:02:57.9]} 8. Rb1 {[%clk 0:03:07.7]}
8... a5 {[%clk 0:02:55.8]} 9. a3 {[%clk 0:03:08.7]} 9... Bf5 {[%clk 0:02:56.4]}
10. b4 {[%clk 0:03:07.2]} 10... axb4 {[%clk 0:02:57.9]} 11. axb4 {[%clk
0:03:07.4]} 11... Qd7 {[%clk 0:02:59.2]} 12. b5 {[%clk 0:03:08.1]} 12... Nd8
{[%clk 0:02:58.2]} 13. Re1 {[%clk 0:03:05.6]} 13... Bh3 {[%clk 0:02:53.9]} 14.
Bh1 {[%clk 0:03:06.7]} 14... h6 {[%clk 0:02:54]} 15. Nd2 {[%clk 0:02:56.9]}
15... Ng4 {[%clk 0:02:52.2]} 16. Nf1 {[%clk 0:02:53.9]} 16... f6 {[%clk
0:02:26.6]} 17. Nd5 {[%clk 0:02:53.5]} 17... f5 {[%clk 0:02:25.2]} 18. b6 {[%clk
0:02:52.8]} 18... c6 {[%clk 0:02:20.6]} 19. Nc7 {[%clk 0:02:54.2]} 19... Rc8
{[%clk 0:02:14.6]} 20. f3 {[%clk 0:02:54.6]} 20... Nf6 {[%clk 0:02:12.1]} 21. d4
{[%clk 0:02:54.4]} 21... exd4 {[%clk 0:02:09.5]} 22. Qxd4 {[%clk 0:02:54.7]}
22... Nd5 {[%clk 0:01:49.6]} 23. Qd3 {[%clk 0:02:51.5]} 23... Nxc7 {[%clk
0:01:44.9]} 24. bxc7 {[%clk 0:02:52.8]} 24... Rxc7 {[%clk 0:01:46.5]} 25. Bf4
{[%clk 0:02:53.5]} 25... Nf7 {[%clk 0:01:40.4]} 26. Red1 {[%clk 0:02:54.4]}
26... Rd8 {[%clk 0:01:35.2]} 27. c5 {[%clk 0:02:54.7]} 27... Ne5 {[%clk
0:01:34.9]} 28. Qxd6 {[%clk 0:02:54.3]} 28... Qxd6 {[%clk 0:01:30]} 29. cxd6
{[%clk 0:02:51.6]} 29... Rcd7 {[%clk 0:01:29.6]} 30. Ne3 {[%clk 0:02:51.6]}
30... b5 {[%clk 0:01:17]} 31. Bxe5 {[%clk 0:02:47.7]} 31... Bxe5 {[%clk
0:01:17.4]} 32. f4 {[%clk 0:02:48.6]} 32... Bxd6 {[%clk 0:01:08]} 33. Bxc6
{[%clk 0:02:48.1]} 33... Re7 {[%clk 0:01:09.6]} 34. Nd5 {[%clk 0:02:48.4]} 34...
Rxe2 {[%clk 0:01:07.3]} 35. Rbc1 {[%clk 0:02:45.2]} 35... Bb8 {[%clk 0:00:25.9]}
36. Bxb5 {[%clk 0:02:06.6]} 36... Ba7+ {[%clk 0:00:25]} 37. Kh1 {[%clk
0:02:07.9]} 37... Bg2# {[%clk 0:00:25.1]} 0-1

[Event "*** Titled Tuesday Blitz"]
[Site "Chess.com"]
[Date "2018.07.03"]
[Round "10"]
[White "Yurovskykh_Oleksandr"]
[Black "morphy1984"]
[Result "0-1"]
[WhiteElo "2387"]
[BlackElo "2480"]
[TimeControl "180+2"]
[EndTime "15:11:44 PDT"]
[Termination "morphy1984 won by resignation"]

1. d4 {[%clk 0:03:01.9]} 1... e6 {[%clk 0:03:00]} 2. c4 {[%clk 0:03:02.6]} 2...
b6 {[%clk 0:03:00.6]} 3. Nc3 {[%clk 0:03:01.9]} 3... Bb7 {[%clk 0:03:00.9]} 4.
a3 {[%clk 0:03:02.9]} 4... f5 {[%clk 0:03:01.2]} 5. Nf3 {[%clk 0:03:03.5]} 5...
Nf6 {[%clk 0:03:01.7]} 6. g3 {[%clk 0:03:04.8]} 6... Be7 {[%clk 0:03:02.3]} 7.
Bg2 {[%clk 0:03:05.5]} 7... Ne4 {[%clk 0:03:03.2]} 8. Bd2 {[%clk 0:03:03.6]}
8... Bf6 {[%clk 0:03:03.2]} 9. O-O {[%clk 0:03:03.6]} 9... O-O {[%clk
0:03:03.2]} 10. e3 {[%clk 0:02:57.2]} 10... d6 {[%clk 0:02:59.9]} 11. Nxe4
{[%clk 0:02:54.1]} 11... Bxe4 {[%clk 0:02:59.9]} 12. Bc3 {[%clk 0:02:55.4]}
12... Nd7 {[%clk 0:02:59.4]} 13. Nd2 {[%clk 0:02:56.4]} 13... Bxg2 {[%clk
0:02:59.3]} 14. Kxg2 {[%clk 0:02:58.3]} 14... Qe7 {[%clk 0:02:50.2]} 15. e4
{[%clk 0:02:55.5]} 15... c5 {[%clk 0:02:48]} 16. d5 {[%clk 0:02:48.3]} 16...
Bxc3 {[%clk 0:02:46.3]} 17. bxc3 {[%clk 0:02:50.2]} 17... e5 {[%clk 0:02:34]}
18. f3 {[%clk 0:02:48]} 18... f4 {[%clk 0:02:23.6]} 19. g4 {[%clk 0:02:48.6]}
19... Rf6 {[%clk 0:02:02]} 20. Qe2 {[%clk 0:02:45.8]} 20... Rh6 {[%clk
0:02:01.9]} 21. Rh1 {[%clk 0:02:46.1]} 21... Nf8 {[%clk 0:02:00.8]} 22. Qf2
{[%clk 0:02:42.3]} 22... Ng6 {[%clk 0:02:00.3]} 23. h3 {[%clk 0:02:43.7]} 23...
Nh4+ {[%clk 0:02:00.3]} 24. Kf1 {[%clk 0:02:45.1]} 24... g5 {[%clk 0:01:59.1]}
25. a4 {[%clk 0:02:42.3]} 25... Rf6 {[%clk 0:01:48.2]} 26. Qe2 {[%clk
0:02:43.1]} 26... Qc7 {[%clk 0:01:42.7]} 27. Kf2 {[%clk 0:02:43.1]} 27... Rff8
{[%clk 0:01:39.9]} 28. Rhb1 {[%clk 0:02:43.2]} 28... Rfb8 {[%clk 0:01:34.9]} 29.
Qd1 {[%clk 0:02:43.9]} 29... Kf7 {[%clk 0:01:32.4]} 30. Rb5 {[%clk 0:02:41.5]}
30... Ng6 {[%clk 0:01:28.6]} 31. Rab1 {[%clk 0:02:42.2]} 31... Nf8 {[%clk
0:01:26.7]} 32. Qh1 {[%clk 0:02:41.2]} 32... Ng6 {[%clk 0:01:26.1]} 33. Ke2
{[%clk 0:02:41]} 33... Qd7 {[%clk 0:01:21.5]} 34. Qd1 {[%clk 0:02:39]} 34... Rc8
{[%clk 0:01:14.6]} 35. a5 {[%clk 0:02:35.3]} 35... bxa5 {[%clk 0:01:15.3]} 36.
Qa4 {[%clk 0:02:36.3]} 36... Rc7 {[%clk 0:01:11.4]} 37. Qxa5 {[%clk 0:02:34.6]}
37... Ne7 {[%clk 0:01:05.7]} 38. Rb8 {[%clk 0:02:31.6]} 38... Rxb8 {[%clk
0:01:04.7]} 39. Rxb8 {[%clk 0:02:33.5]} 39... Rc8 {[%clk 0:01:05.5]} 40. Rxc8
{[%clk 0:02:27]} 40... Nxc8 {[%clk 0:01:03.8]} 41. Qa6 {[%clk 0:02:28.3]} 41...
Nb6 {[%clk 0:01:03.1]} 42. Kd3 {[%clk 0:02:24.5]} 42... Kf6 {[%clk 0:00:48.5]}
43. Nb3 {[%clk 0:02:25.1]} 43... Qa4 {[%clk 0:00:44.3]} 44. Qxa4 {[%clk
0:02:23.5]} 44... Nxa4 {[%clk 0:00:45]} 45. Na5 {[%clk 0:02:23.1]} 45... a6
{[%clk 0:00:39.7]} 46. Kc2 {[%clk 0:02:21.9]} 46... Nb6 {[%clk 0:00:39.4]} 47.
Nc6 {[%clk 0:02:22.5]} 47... Nxc4 {[%clk 0:00:38]} 48. Nb8 {[%clk 0:02:23.5]}
48... a5 {[%clk 0:00:36.2]} 49. Nc6 {[%clk 0:02:24.7]} 49... a4 {[%clk
0:00:36.5]} 50. Na7 {[%clk 0:02:23.8]} 50... a3 {[%clk 0:00:35.9]} 0-1

[Event "*** Titled Tuesday Blitz"]
[Site "Chess.com"]
[Date "2018.07.03"]
[Round "10"]
[White "Caterpiller35"]
[Black "Bad4life"]
[Result "0-1"]
[WhiteElo "2291"]
[BlackElo "2433"]
[TimeControl "180+2"]
[EndTime "15:12:02 PDT"]
[Termination "Bad4life won by resignation"]

1. d4 {[%clk 0:03:01.9]} 1... Nf6 {[%clk 0:03:00.8]} 2. Bg5 {[%clk 0:03:02.1]}
2... c5 {[%clk 0:03:01.5]} 3. d5 {[%clk 0:03:02.7]} 3... d6 {[%clk 0:02:59.2]}
4. Nc3 {[%clk 0:03:03.4]} 4... g6 {[%clk 0:02:58.5]} 5. Qd2 {[%clk 0:03:02.3]}
5... h6 {[%clk 0:02:59]} 6. Bh4 {[%clk 0:02:59.3]} 6... Bg7 {[%clk 0:02:59.9]}
7. e4 {[%clk 0:02:59.4]} 7... Nbd7 {[%clk 0:02:57.3]} 8. f4 {[%clk 0:02:56.9]}
8... a6 {[%clk 0:02:56]} 9. a4 {[%clk 0:02:55.8]} 9... Qa5 {[%clk 0:02:56.4]}
10. Ra3 {[%clk 0:02:39.4]} 10... O-O {[%clk 0:02:48.5]} 11. Nf3 {[%clk
0:02:39.5]} 11... Re8 {[%clk 0:02:40.1]} 12. e5 {[%clk 0:02:03.4]} 12... dxe5
{[%clk 0:02:21.3]} 13. fxe5 {[%clk 0:02:02.8]} 13... Ng4 {[%clk 0:02:13.3]} 14.
e6 {[%clk 0:02:02.5]} 14... fxe6 {[%clk 0:02:09.9]} 15. dxe6 {[%clk 0:01:55.1]}
15... Nf8 {[%clk 0:02:11]} 16. Bd3 {[%clk 0:01:42.3]} 16... Bxe6 {[%clk
0:01:54.9]} 17. O-O {[%clk 0:01:42.5]} 17... Rad8 {[%clk 0:01:54.5]} 18. Qe2
{[%clk 0:01:36]} 18... c4 {[%clk 0:01:40.4]} 19. Bxg6 {[%clk 0:01:21.4]} 19...
Qb6+ {[%clk 0:01:36]} 20. Kh1 {[%clk 0:01:13.6]} 20... Nxg6 {[%clk 0:01:37.2]}
21. a5 {[%clk 0:01:13.2]} 21... Qd6 {[%clk 0:01:19.2]} 22. Bg3 {[%clk
0:01:13.3]} 22... Qd7 {[%clk 0:01:08.6]} 23. Ne4 {[%clk 0:01:09]} 23... Bd5
{[%clk 0:00:52.6]} 24. Raa1 {[%clk 0:00:56.6]} 24... Qc6 {[%clk 0:00:49.8]} 25.
Nc3 {[%clk 0:00:51.8]} 25... e6 {[%clk 0:00:36.5]} 26. h3 {[%clk 0:00:44.6]}
26... Nf6 {[%clk 0:00:33.3]} 27. Nd4 {[%clk 0:00:45]} 27... Bxg2+ {[%clk
0:00:25.4]} 28. Qxg2 {[%clk 0:00:43.6]} 28... Qxg2+ {[%clk 0:00:26.4]} 29. Kxg2
{[%clk 0:00:45.5]} 29... Rxd4 {[%clk 0:00:27.7]} 0-1